Cogmind - Beta 14 @@@ ROGUE MODE // 2025.03.20 @ 19:29:00 Player: Anting Result: Destroyed by G-67 Veteran with Plasma Rifle Performance ------------- Evolutions (6) 3000 Regions Visited (34) 6800 Robots Destroyed (321) 1605 Value Destroyed (14982) 14982 Prototype IDs (49) 980 Alien Tech Used (0) 0 Bonus (8834) 8834 TOTAL SCORE: 36201 Bonus ------- High Alert Combat Kills 2578 Follower Combat Kills 2567 Entered Garrisons 800 Aligned with FarCom 300 Met Imprinter 300 Acquired ECA 300 Met Warlord at Base 500 MAIN.C Attacked Warlord 500 Warlord Defense Kills 2180 Built Enhanced Grunts 300 Friendly Fire -1491 Cogmind --------- Core Integrity 0/1150 Matter 287/300 Energy 98/100 System Corruption 1% Temperature Cool (12) Movement Core (50) Location -3/Proximity Caves Parts ------- > --- POWER (1) -------- (None) > --- PROPULSION (6) --- (None) > --- UTILITY (7) ------ Improved Target Analyzer Armor Integrity Analyzer > --- WEAPON (5) ------- (None) > --- INVENTORY (5) ---- YOLO Cannon Heavy Rocket Launcher RU-N14's Throwing Claymores v3 (5) RU-N14's Throwing Claymores v3 (5) Peak State ------------ > --- POWER ------------ Antimatter Reactor > --- PROPULSION ------- Gravmag System Gravmag System Antigrav System Linear Gravjet Combat Gravmag System Improved Linear Gravjet > --- UTILITY ---------- Core Analyzer Recoil Nullifier Weapon Cycler Improved Transmission Jammer Advanced Hardlight Generator Improved System Restoration Module > --- WEAPON ----------- Coil Gun Railgun Railgun Advanced KE Penetrator Advanced KE Penetrator > --- INVENTORY -------- Matter Compressor YOLO Cannon Advanced KE Penetrator Micro-nuke Launcher [Rating: 111] Favorites ----------- Power Improved Ion Engine Engine Improved Ion Engine Power Core Light Nuclear Core Reactor Light Quantum Reactor Propulsion Light Treads Treads Light Treads Leg Aluminum Leg Hover Unit Gravmag System Flight Unit Improved Cesium-ion Thruster Utility Core Analyzer Device Weapon Cycler Storage Large Storage Unit Processor Core Analyzer Hackware Hacking Suite Protection Light Armor Plating Weapon Enhanced Autogun Energy Gun Plasma Storm Energy Cannon Phase Cannon Ballistic Gun Enhanced Autogun Ballistic Cannon Assault Cannon Launcher Micro-nuke Launcher Special Weapon RU-N14's Throwing Claymores v3 Slashing Weapon Axe Special Melee Weapon Datajack Build | -11 -10 -10 -9 -9 -9 -8 -8 -8 -8 -7 -7 -7 -7 -7 -7 -7 -7 -7 -7 -6 -6 -6 -6 -6 -6 -6 -5 -4 -4 -4 -4 -4 -4 -3 ------- Run | Yrd Mat Min Mat Min Exi Min Mat Sto Gar Fac Was Fac Gar Fac Gar Fac Low Low Zio Pro Fac Ext Cet Arc Hub Gar Fac Fac Was Fac Upp Upp War Pro Slots Evolved 12 | . . . 2 . . . 2 . . 2 . . . . . . . . . . 2 . . . . . 2 2 . . . . . . Power . | . . . . . . . . . . . . . . . . . . . . . . . . . . . . . . . . . . . Propulsion 4 | . . . 2 . . . . . . . . . . . . . . . . . 1 . . . . . 1 . . . . . . . Utility 5 | . . . . . . . 2 . . . . . . . . . . . . . 1 . . . . . 1 1 . . . . . . Weapon 3 | . . . . . . . . . . 2 . . . . . . . . . . . . . . . . . 1 . . . . . . Parts Attached 279 | 7 2 2 20 1 2 2 8 4 30 42 4 7 6 1 16 4 . . 2 2 4 17 7 10 3 6 19 5 1 19 4 5 16 1 Power 25 | 1 . . 1 . . . . . 3 4 1 . 1 . . 2 . . . . . 1 2 1 . . 1 1 . 1 1 1 3 . Engine 12 | 1 . . 1 . . . . . 2 3 . . . . . . . . . . . 1 2 1 . . . . . . 1 . . . Core 8 | . . . . . . . . . 1 1 1 . 1 . . 2 . . . . . . . . . . 1 . . . . 1 . . Reactor 5 | . . . . . . . . . . . . . . . . . . . . . . . . . . . . 1 . 1 . . 3 . Propulsion 70 | 2 . . 8 . . 2 3 . 9 14 . 1 . . 1 . . . . . 1 . . 6 . 1 7 1 1 6 1 . 6 . Treads 40 | . . . 5 . . 2 3 . 9 9 . . . . . . . . . . . . . . . . . . . 5 1 . 6 . Leg 5 | 2 . . 3 . . . . . . . . . . . . . . . . . . . . . . . . . . . . . . . Wheel . | . . . . . . . . . . . . . . . . . . . . . . . . . . . . . . . . . . . Hover 15 | . . . . . . . . . . . . . . . . . . . . . . . . 6 . 1 5 1 1 1 . . . . Flight 10 | . . . . . . . . . . 5 . 1 . . 1 . . . . . 1 . . . . . 2 . . . . . . . Utility 67 | 2 . 2 3 . . . 4 . 4 9 2 5 . 1 2 1 . . . . 3 2 . 1 3 . 7 . . 10 . 4 2 . Device 28 | 1 . 1 2 . . . 1 . 1 4 . 2 . . . . . . . . 2 1 . . 3 . 5 . . 3 . 1 1 . Storage 5 | 1 . 1 . . . . 1 . . . . . . . . . . . . . . . . . . . . . . 1 . 1 . . Processor 11 | . . . . . . . 1 . . 1 . 2 . . 1 . . . . . . 1 . . . . 1 . . 3 . 1 . . Hackware 2 | . . . . . . . . . . . . . . . . . . . . . 1 . . . . . 1 . . . . . . . Protection 21 | . . . 1 . . . 1 . 3 4 2 1 . 1 1 1 . . . . . . . 1 . . . . . 3 . 1 1 . Artifact . | . . . . . . . . . . . . . . . . . . . . . . . . . . . . . . . . . . . Weapon 117 | 2 2 . 8 1 2 . 1 4 14 15 1 1 5 . 13 1 . . 2 2 . 14 5 2 . 5 4 3 . 2 2 . 5 1 Energy Gun 4 | 1 . . . . . . . . . . . . . . . . . . . . . . . . . . . . . . . . 3 . Energy Cannon 4 | . . . 1 . . . . . . . . . . . . . . . . . . 1 . . . . . . . . 1 . . 1 Ballistic Gun 67 | 1 2 . 5 1 1 . . 1 4 12 1 1 3 . 6 1 . . 1 1 . 8 5 2 . 3 3 3 . 1 1 . . . Ballistic Cannon 10 | . . . . . . . 1 . 6 2 . . . . . . . . . . . . . . . . . . . . . . 1 . Launcher 26 | . . . 2 . . . . 3 4 1 . . 2 . 5 . . . . 1 . 5 . . . 2 . . . 1 . . . . Special Weapon 2 | . . . . . . . . . . . . . . . . . . . 1 . . . . . . . . . . . . . 1 . Impact Weapon . | . . . . . . . . . . . . . . . . . . . . . . . . . . . . . . . . . . . Slashing Weapon 3 | . . . . . . . . . . . . . . . 2 . . . . . . . . . . . 1 . . . . . . . Piercing Weapon . | . . . . . . . . . . . . . . . . . . . . . . . . . . . . . . . . . . . Special Melee Weapon 1 | . . . . . 1 . . . . . . . . . . . . . . . . . . . . . . . . . . . . . Unidentified Prototypes 9 | . . 1 1 . . . . 1 . 1 . 1 . . . . . . 1 . . . 1 . . . . . . . . . 2 . Corrupted Parts 1 | . . . . . . . . . . . . . . . . . . . . . . . . . . 1 . . . . . . . . System Corruption 1 | . . . . . . . . . . . . . . . . . . . . . . . . . . 1 . . . . . . . . Parts Lost 81 | . . 1 1 . . . . 2 19 11 . . . . . 1 . . . . . 1 . 1 . . 7 . . 7 6 13 4 7 Power 9 | . . . . . . . . . 3 2 . . . . . 1 . . . . . . . . . . . . . . 1 2 . . Propulsion 29 | . . . . . . . . . 8 2 . . . . . . . . . . . . . 1 . . 2 . . 4 2 4 2 4 Utility 25 | . . 1 1 . . . . 1 5 3 . . . . . . . . . . . 1 . . . . 3 . . 2 . 4 2 2 Weapon 18 | . . . . . . . . 1 3 4 . . . . . . . . . . . . . . . . 2 . . 1 3 3 . 1 Highest Loss Streak 7 | . . 1 1 . . . . 2 6 3 . . . . . 1 . . . . . 1 . 1 . . 7 . . 2 6 6 4 6 To Critical Strikes 1 | . . . . . . . . . . . . . . . . . . . . . . . . . . . . . . . . . . 1 Average Slot Usage (%) 88 | . 98 85 95 100 100 100 99 98 87 93 82 95 100 100 97 91 92 92 92 92 91 92 80 81 100 100 91 81 84 86 79 58 47 26 Engine 5 | . 14 14 11 11 11 11 9 9 6 5 6 . . . . . . . . . . 5 5 6 6 6 3 . . . 2 1 2 . Core 1 | . . . . . . . . . . . 1 7 7 7 7 6 7 7 7 7 6 . . . . . 1 2 . . . 2 . . Treads 14 | . . . 6 44 44 44 36 36 34 26 . . . . . . . . . . . . . . . . . . . 13 21 13 5 7 Leg 2 | . 28 28 33 . . . . . . . . . . . . . . . . . . . . . . . . . . . . . . . Hover 5 | . . . . . . . . . . . . . . . . . . . . . . . . 10 33 33 31 31 31 13 . . 7 . Flight 7 | . . . . . . . . . . 2 30 30 30 30 28 23 23 23 23 23 26 26 21 10 . . 2 . . . . . . . Device 9 | . 14 . 7 . . . 9 9 6 15 . 4 15 15 13 7 7 7 7 7 11 13 13 13 19 20 16 15 15 10 10 5 5 2 Storage 4 | . 14 14 11 11 11 11 9 9 9 6 . . . . . . . . . . . . . . . . . . . 2 5 6 . . Processor 7 | . . . . . . . 4 9 2 . 7 13 7 7 8 15 15 15 15 15 13 11 13 13 6 6 5 5 5 11 15 15 19 13 Protection 5 | . . . 3 11 11 11 12 8 8 3 5 7 7 7 7 7 7 7 7 7 6 5 . 1 6 6 2 . . 6 5 1 . . Ballistic Gun 20 | . 20 28 21 22 18 22 9 9 9 24 30 30 29 30 28 29 30 30 29 30 26 25 26 25 26 26 20 23 26 21 7 . . . Ballistic Cannon 1 | . . . . . . . 8 7 8 4 . . . . . . . . . . . . . . . . . . . . . . . . Peak Build Rating 111 | 7 9 17 16 14 15 15 23 25 25 54 50 58 57 57 68 68 68 68 70 68 78 86 74 77 77 76 91 99 97 111 104 71 102 83 Average Rating 49 | 5 7 9 13 14 13 15 20 22 22 38 49 55 56 57 59 67 68 68 67 68 76 77 71 63 76 75 83 94 97 93 75 54 68 34 On Entrance 52 | . 7 9 10 14 14 15 15 23 19 22 47 49 57 57 57 68 68 68 68 68 68 78 74 71 77 76 76 80 97 97 104 71 25 83 Naked Turns . | . . . . . . . . . . . . . . . . . . . . . . . . . . . . . . . . . . . Heaviest Build 105 | 14 17 31 36 36 36 36 62 59 61 105 25 23 23 23 27 25 25 25 25 25 27 36 28 41 42 47 46 49 48 80 80 59 47 42 Greatest Support 152 | 20 20 20 80 80 80 80 80 80 83 86 24 24 24 24 27 27 27 27 27 27 33 33 33 45 45 45 56 57 57 127 127 81 152 101 Greatest Overweight (x) 25 | . . 1 1 . . . . . 1 25 1 . . . 1 . . . . . . 1 . 2 . 1 . . . 2 1 1 8 . Average Overweight (x) . | . . . . . . . . . . . . . . . . . . . . . . . . . . . . . . . . . . . Largest Inventory Capacity 20 | 8 8 15 15 15 15 15 20 20 20 20 5 5 5 5 5 5 5 5 5 5 5 5 5 5 5 5 5 5 5 15 15 15 5 5 Average Capacity 11 | 7 8 14 15 15 15 15 19 20 20 18 5 5 5 5 5 5 5 5 5 5 5 5 5 5 5 5 5 5 5 9 15 14 5 5 Most Carried 20 | 3 6 11 15 15 15 15 20 20 20 20 5 5 5 5 5 5 5 5 5 5 5 5 5 5 5 5 5 5 5 10 9 9 5 5 Average Carried 9 | 2 4 9 13 15 14 15 18 20 17 16 5 4 5 5 4 4 5 5 5 5 4 4 4 5 5 5 4 4 5 6 9 8 4 4 Final Capacity 20 | 8 8 15 15 15 15 15 20 20 20 5 5 5 5 5 5 5 5 5 5 5 5 5 5 5 5 5 5 5 5 15 15 5 5 5 Final Carried 20 | 3 6 11 15 15 15 15 20 20 11 5 5 5 5 5 5 5 5 5 5 5 5 5 5 5 5 5 5 5 5 9 9 5 5 5 Class Distribution -------------------- 24% | Scavenger-Mutant 21% | Scavenger-Gunner 19% | Sprinter 11% | Scavenger-Skirmisher 11% | Mutant 3% | Commander-Sprinter 3% | Gunner Dominant Class ---------------- Mutant | -10/Materials Mutant | -10/Mines Mutant | -9/Materials Scavenger-Mutant | -9/Mines Scavenger-Mutant | -9/Exiles Scavenger-Mutant | -8/Mines Scavenger-Skirmisher | -8/Materials Scavenger-Skirmisher | -8/Storage Scavenger-Mutant | -8/Garrison Scavenger-Skirmisher | -7/Factory Skirmisher | -7/Waste Sprinter | -7/Factory Sprinter | -7/Garrison Sprinter | -7/Factory Sprinter | -7/Garrison Sprinter | -7/Factory Sprinter | -7/Lower Caves Sprinter | -7/Lower Caves Sprinter | -7/Zion Sprinter | -6/Proximity Caves Sprinter | -6/Factory Sprinter | -6/Extension Scavenger-Sprinter | -6/Cetus Commander-Gunner | -6/Archives Scavenger-Gunner | -6/Hub_04(d) Scavenger-Gunner | -6/Garrison Scavenger-Gunner | -5/Factory Scavenger-Gunner | -4/Factory Scavenger-Sprinter | -4/Waste Scavenger-Gunner | -4/Factory Scavenger-Gunner | -4/Upper Caves Scavenger-Mutant | -4/Upper Caves Gunner | -4/Warlord Mutant | -3/Proximity Caves Resources | -11 -10 -10 -9 -9 -9 -8 -8 -8 -8 -7 -7 -7 -7 -7 -7 -7 -7 -7 -7 -6 -6 -6 -6 -6 -6 -6 -5 -4 -4 -4 -4 -4 -4 -3 ----------- Run | Yrd Mat Min Mat Min Exi Min Mat Sto Gar Fac Was Fac Gar Fac Gar Fac Low Low Zio Pro Fac Ext Cet Arc Hub Gar Fac Fac Was Fac Upp Upp War Pro Matter Collected 11853 | 305 . 99 391 44 . 116 354 . 1258 1674 230 231 209 . 562 755 88 . 180 82 159 1237 285 483 70 492 719 . . 1186 184 174 286 . Remotely . | . . . . . . . . . . . . . . . . . . . . . . . . . . . . . . . . . . . Salvage Created 13694 | 283 . 253 848 . . 100 343 25 1295 2057 297 258 209 . 508 704 227 . . 74 159 1321 178 363 54 520 500 . . 1539 111 328 1070 70 Parts 693 | 22 . 14 57 . . 14 18 4 61 99 6 15 9 . 31 34 4 . . 9 4 52 8 24 12 27 44 . . 66 6 10 40 3 Haulers Intercepted 11 | . . . 4 . . . 1 . . 3 . . . . . 2 . . . . . . . . . . . . . 1 . . . . Recyclers Shooed 6 | . . 1 . . . . . . . 1 . . . . . 1 . . . . 1 . . . 1 . . . . 1 . . . . Parts Field Recycled . | . . . . . . . . . . . . . . . . . . . . . . . . . . . . . . . . . . . Retrieved Matter . | . . . . . . . . . . . . . . . . . . . . . . . . . . . . . . . . . . . Parts Self-Destructed 24 | . . . . . . . . . . . . . . . . . 4 . . 8 . . . . . . . . . . 6 3 . 3 Prevented . | . . . . . . . . . . . . . . . . . . . . . . . . . . . . . . . . . . . Kills | -11 -10 -10 -9 -9 -9 -8 -8 -8 -8 -7 -7 -7 -7 -7 -7 -7 -7 -7 -7 -6 -6 -6 -6 -6 -6 -6 -5 -4 -4 -4 -4 -4 -4 -3 ------- Run | Yrd Mat Min Mat Min Exi Min Mat Sto Gar Fac Was Fac Gar Fac Gar Fac Low Low Zio Pro Fac Ext Cet Arc Hub Gar Fac Fac Was Fac Upp Upp War Pro Combat Hostiles Destroyed 225 | . . 3 15 . . 4 9 1 40 27 1 2 10 . 11 4 1 . . 5 . 17 2 1 . 13 9 . . 19 1 11 18 1 Melee 1 | . . . . . . . . . . 1 . . . . . . . . . . . . . . . . . . . . . . . . Guns 119 | . . 1 8 . . 4 2 . 15 21 1 2 5 . 7 3 1 . . 1 . 11 2 1 . 7 9 . . 16 1 . 1 . Cannons 30 | . . . . . . . 7 . 17 5 . . . . . . . . . . . . . . . . . . . . . 1 . . AOE 72 | . . 2 7 . . . . 1 8 . . . 5 . 4 1 . . . 4 . 6 . . . 6 . . . 3 . 10 14 1 Classes Destroyed 26 | 3 . 2 5 . . . 1 1 1 3 1 . . . 1 . . . . 1 . 1 . . . . 1 . . 1 1 1 2 . Worker 11 | 1 . . . 1 . 2 . . . 4 . . . . . . . . . . . . . . . . 2 . . 1 . . . . Builder 13 | . . 1 1 . . 1 . . . 3 . . . . . . . . . . . 3 . . 2 . . . . 2 . . . . Tunneler 12 | 9 . . . . . . . . . 2 . . . . . . . . . . . . . . . . . . . 1 . . . . Hauler 11 | . . . 4 . . . 1 . . 3 . . . . . 2 . . . . . . . . . . . . . 1 . . . . Recycler 20 | 1 . 1 3 . . . . . . 4 . 1 . . . 5 . . . . 1 3 . . . . . . . 1 . . . . Mechanic 3 | . . . 1 . . . 1 . . . . . . . . . . . . . . 1 . . . . . . . . . . . . Operator 13 | . . . . . . . 1 . . . . . . . . . . . . . . 1 . 9 1 . 1 . . . . . . . Drone 1 | . . . . . . . . . . . . . . . . . . . . 1 . . . . . . . . . . . . . . Watcher 13 | . . . 2 . . . . . . 1 . 1 . . . 4 . . . . . 1 1 . . 1 2 . . . . . . . Swarmer 49 | . . . 7 . . 3 3 . 7 . . . 7 . . 2 . . . 4 . 2 . . . 6 . . . . . 4 4 . Cutter 6 | . . . . . . . . . . . . . . . . . . . . . . . . . . . 6 . . . . . . . Saboteur 1 | . . . . . . . . . . . . . . . . . . . . . . . . . . . . . . 1 . . . . Grunt 81 | . . 3 5 . . 1 4 . 25 10 . . 3 . 6 1 . . . . . 8 . . . 4 . . . 7 . 4 . . Brawler 12 | . . . . . . . . . . 2 . . . . 1 . . . . . . . . . . . 2 . . 2 . 1 4 . Duelist 6 | . . . . . . . . . 1 . . . . . 2 . . . . . . 1 . . . 1 . . . . . . 1 . Protector 4 | . . . . . . . . 1 . 1 . . . . . . . . . . . . . . . . . . . . . . 2 . Sentry 34 | . . . 3 . . . 2 . 7 9 . 2 . . . 1 . . . . . 5 . 1 . . 1 . . 3 . . . . Demolisher 2 | . . . . . . . . . . . . . . . 1 . . . . . . . . . . . . . . . . . 1 . Specialist 1 | . . . . . . . . . . . . . . . . . . . . . . 1 . . . . . . . . . . . . Hunter 11 | . . . . . . . . . . 3 . . . . . . . . . . . . . . . 1 . . . 4 . 2 . 1 Programmer 10 | . . . . . . . . . . 2 . . . . 1 . 1 . . . . . . . . 1 . . . 2 . . 3 . Behemoth 1 | . . . . . . . . . . . . . . . . . . . . . . . . . . . . . . . 1 . . . Compactor 1 | . . . . . . . . . . . 1 . . . . . . . . . . . . . . . . . . . . . . . Cetus Guard 2 | . . . . . . . . . . . . . . . . . . . . . . . 2 . . . . . . . . . . . Executioner 2 | . . . . . . . . . . . . . . . . . . . . . . . . . . . . . . . . . 2 . Decomposer 1 | . . . . . . . . . . . . . . . . . . . . 1 . . . . . . . . . . . . . . Samaritan 1 | . . . . . . . . . . . . . . . . . . . . . . . . . . . . . . . . 1 . . Wasp 3 | . . . . . . . . . . . 3 . . . . . . . . . . . . . . . . . . . . . . . Mutant 2 | . . . . . . . . . . . . . . . . . . . . . . . . . . . . . . . . . 2 . Best Kill Streak 11 | 4 . 2 10 1 . 3 5 1 5 11 1 2 7 . 5 4 1 . . 4 1 7 2 7 2 6 6 . . 5 1 6 11 1 Combat Bots Only 11 | . . 2 4 . . 3 5 1 5 8 1 2 7 . 5 2 1 . . 4 . 6 2 1 . 6 6 . . 5 1 6 11 1 Max Kills in Single Turn 7 | 1 . 2 7 1 . 2 2 1 2 2 2 1 3 . 2 1 1 . . 4 1 2 1 1 1 2 3 . . 1 1 2 3 1 Gunslinging 1 | . . . . . . 1 . . . . . . 1 . . . . . . . . . . . . . 1 . . . . . . . Exploded 4 | . . 2 3 . . . . 1 2 . . . 3 . 2 1 . . . 4 . 2 . . . 2 . . . 1 . 2 3 1 Melee 1 | . . . . . . . . . . 1 . . . . . . . . . . . . . . . . . . . . . . . . Uniques/NPCs Destroyed . | . . . . . . . . . . . . . . . . . . . . . . . . . . . . . . . . . . . Combat | -11 -10 -10 -9 -9 -9 -8 -8 -8 -8 -7 -7 -7 -7 -7 -7 -7 -7 -7 -7 -6 -6 -6 -6 -6 -6 -6 -5 -4 -4 -4 -4 -4 -4 -3 -------- Run | Yrd Mat Min Mat Min Exi Min Mat Sto Gar Fac Was Fac Gar Fac Gar Fac Low Low Zio Pro Fac Ext Cet Arc Hub Gar Fac Fac Was Fac Upp Upp War Pro Hostile Shots Fired 1352 | . . 13 52 . . 25 32 25 211 371 . 27 23 . 15 18 8 . . 3 1 54 9 5 . 33 34 . . 126 36 80 73 78 Missed 467 | . . 1 20 . . 4 8 5 53 143 . 9 7 . 9 12 4 . . 2 1 34 2 3 . 11 13 . . 33 7 38 21 27 Damage Taken 14788 | . . 160 303 . . 227 316 390 2518 2193 38 231 232 . 118 139 56 . . 17 . 339 136 51 47 383 691 . . 1652 785 1090 1635 1041 Core 1935 | . . 31 25 . . 18 6 35 300 193 19 6 14 . 12 . . . . . . 32 36 23 . . 32 . . 122 33 273 199 526 Absorbed by Shields 360 | . . . 83 . . . . . 49 . . . . . . . . . . . . 130 . . . 10 . . . 88 . . . . Ignored by Resistances 264 | . . . . . . . . . . 152 . . . . . . . . . . . . . . . . . . . 22 90 . . . Regen/Repaired (Parts) 348 | . . . . . . . . . . 127 20 . . 40 . 146 . . . . . . . . . . . . . . . . 15 . Core Remaining (%) 80 | 100 . 87 . . . 89 . . 38 . . . . . . . . . . 65 . . . . . 89 96 . . . . . . . Volleys Fired 892 | 35 4 10 39 1 . 10 40 2 129 82 11 11 12 . 36 27 8 . 31 5 4 77 15 90 4 36 43 1 . 76 8 27 15 3 Largest 5 | 2 2 2 2 2 . 2 2 1 2 4 4 4 4 . 4 4 4 . 1 4 1 4 4 2 4 4 4 5 . 5 3 2 1 1 Hottest 300 | 70 70 46 46 46 . 46 67 30 67 125 103 103 103 . 103 113 113 . 35 113 35 113 120 70 136 136 138 170 . 170 103 120 300 300 Shots Fired 1943 | 69 8 20 73 2 . 20 66 2 219 312 45 44 31 . 77 98 14 . 31 11 4 173 52 97 16 87 96 5 . 208 16 29 15 3 Gun 1658 | 69 8 20 68 2 . 20 28 . 99 266 45 44 28 . 70 98 14 . 31 10 4 152 52 97 16 82 96 5 . 205 16 2 10 1 Cannon 211 | . . . . . . . 38 . 108 45 . . . . . . . . . . . 1 . . . . . . . . . 12 5 2 Launcher 74 | . . . 5 . . . . 2 12 1 . . 3 . 7 . . . . 1 . 20 . . . 5 . . . 3 . 15 . . Special . | . . . . . . . . . . . . . . . . . . . . . . . . . . . . . . . . . . . Kinetic 1805 | 35 4 20 68 2 . 20 66 . 207 311 45 44 28 . 70 98 14 . 31 10 4 152 52 97 16 82 96 5 . 205 16 2 5 . Thermal 64 | 34 4 . . . . . . . . . . . . . . . . . . . . 1 . . . . . . . . . 12 10 3 Explosive 74 | . . . 5 . . . . 2 12 1 . . 3 . 7 . . . . 1 . 20 . . . 5 . . . 3 . 15 . . Electromagnetic . | . . . . . . . . . . . . . . . . . . . . . . . . . . . . . . . . . . . Robot Hit Streak 33 | 14 2 3 12 1 . 3 21 . 33 29 8 6 14 . 8 8 4 . . 3 7 10 5 10 4 6 7 2 . 10 9 4 5 6 Robot Miss Streak 8 | 2 3 4 4 1 . 4 2 . 4 3 7 3 1 . 2 4 1 . . 6 . 4 2 4 4 6 4 4 . 4 1 8 4 4 Penetration Max 1 | . . . . . . . . . . 1 . . . . . . . . . . . 1 . . 1 1 1 . . 1 . . . . Secondary Targets 13 | . . . . . . 1 . . . 2 . . 2 . 2 . . . . . . 1 1 . . . 2 . . 2 . . . . Max Gunslinging Chain 1 | . . . . . . 1 . . . 1 . . 1 . 1 . . . . . . 1 1 . . . 1 . . 1 . . . . Shots Hit Robots 1020 | 39 2 9 39 1 4 9 42 . 122 206 18 22 20 . 33 49 9 . . 3 4 95 22 61 5 36 35 1 . 102 14 11 6 1 Core Hits 673 | 18 . 6 30 1 . 5 16 8 74 90 6 9 16 . 26 21 5 . . 6 2 64 14 34 4 30 19 . . 60 6 29 69 5 Critical Kills 27 | . . . . . . . . . 1 1 . . . . . 1 1 . . . . 1 1 . . 2 9 . . 10 . . . . Critical Parts Destroyed 26 | . . . . . . . . . . 3 1 . . . . 2 . . . . . 1 1 . 1 3 3 . . 9 1 1 . . Critical Strikes 68 | 4 . . . . . . 3 . 4 8 1 . . . . 3 1 . . . . 2 2 . 1 5 12 . . 20 1 1 . . Burn 4 | 4 . . . . . . . . . . . . . . . . . . . . . . . . . . . . . . . . . . Destroy 55 | . . . . . . . . . 1 5 1 . . . . 3 1 . . . . 2 2 . 1 5 12 . . 20 1 1 . . Blast 9 | . . . . . . . 3 . 3 3 . . . . . . . . . . . . . . . . . . . . . . . . Melee Attacks 8 | . . . . . 4 . . . . . . . . . 1 . . . . . . . . . . . 3 . . . . . . . Impact . | . . . . . . . . . . . . . . . . . . . . . . . . . . . . . . . . . . . Slashing 4 | . . . . . . . . . . . . . . . 1 . . . . . . . . . . . 3 . . . . . . . Piercing . | . . . . . . . . . . . . . . . . . . . . . . . . . . . . . . . . . . . Sneak Attacks 4 | . . . . . 4 . . . . . . . . . . . . . . . . . . . . . . . . . . . . . Combat Hostiles . | . . . . . . . . . . . . . . . . . . . . . . . . . . . . . . . . . . . Follow-up Attacks . | . . . . . . . . . . . . . . . . . . . . . . . . . . . . . . . . . . . Damage Inflicted 34456 | 435 19 203 1677 49 . 248 894 294 3273 4316 518 442 1056 . 1296 1099 210 . . 383 104 3718 546 1209 212 2026 982 22 . 3311 361 1770 3551 232 Guns 18830 | 435 19 138 589 15 . 217 349 . 1003 3502 518 442 318 . 587 1014 210 . . 71 104 2072 546 1209 212 1136 982 22 . 2610 361 18 122 9 Cannons 2772 | . . . . . . . 516 . 1499 572 . . . . . . . . . . . . . . . . . . . . . 185 . . Explosions 12673 | . . 55 1077 . . . . 294 765 189 . . 738 . 709 85 . . . 312 . 1646 . . . 890 . . . 694 . 1567 3429 223 Melee . | . . . . . . . . . . . . . . . . . . . . . . . . . . . . . . . . . . . Ramming 181 | . . 10 11 34 . 31 29 . 6 53 . . . . . . . . . . . . . . . . . . . 7 . . . . Kinetic 21024 | 186 6 138 589 15 . 217 865 . 2502 4074 518 442 318 . 587 1014 210 . . 71 104 2072 546 1209 212 1136 982 22 . 2610 361 18 . . Thermal 5109 | 249 13 55 679 . . . . . . . . . . . . 85 . . . . . 60 . . . . . . . . . 185 3551 232 Explosive 8142 | . . . 398 . . . . 294 765 189 . . 738 . 709 . . . . 312 . 1586 . . . 890 . . . 694 . 1567 . . Electromagnetic . | . . . . . . . . . . . . . . . . . . . . . . . . . . . . . . . . . . . Impact . | . . . . . . . . . . . . . . . . . . . . . . . . . . . . . . . . . . . Slashing . | . . . . . . . . . . . . . . . . . . . . . . . . . . . . . . . . . . . Piercing . | . . . . . . . . . . . . . . . . . . . . . . . . . . . . . . . . . . . Highest Corruption 8 | . . . . . . . . . 6 6 6 6 6 6 6 6 6 6 6 . . . . . . 1 . . 8 8 2 2 2 1 Average Corruption 4 | . . . . . . . . . 6 5 6 6 6 6 6 6 6 6 6 . . . . . . 1 . . 8 2 2 2 1 1 Corruption Purged 7 | . . . . . . . . . . . . . . . . . . . . . . . . . . . . . . 7 . . . . Corruption Blocked . | . . . . . . . . . . . . . . . . . . . . . . . . . . . . . . . . . . . Effects 139 | . . . . . . . . . 36 8 8 10 . 1 15 30 4 2 . . . . . . . . . . 1 10 9 3 . 2 Message Errors 28 | . . . . . . . . . 9 1 2 5 . . 4 4 . 1 . . . . . . . . . . . . 2 . . . Matter Fused 42 | . . . . . . . . . 11 3 1 1 . 1 4 9 2 1 . . . . . . . . . . . 5 1 1 . 2 Heat Flow Errors 22 | . . . . . . . . . 3 1 . 1 . . 3 7 . . . . . . . . . . . . . 3 2 2 . . Energy Discharges 10 | . . . . . . . . . 2 1 2 1 . . . 3 . . . . . . . . . . . . . . 1 . . . Parts Rejected 3 | . . . . . . . . . . . 1 1 . . . . . . . . . . . . . . . . 1 . . . . . Parts Fused 1 | . . . . . . . . . . . . . . . 1 . . . . . . . . . . . . . . . . . . . Data Loss (minor) 10 | . . . . . . . . . 5 1 1 1 . . . 1 . . . . . . . . . . . . . . 1 . . . Data Loss (major) 5 | . . . . . . . . . 2 . . . . . . . 2 . . . . . . . . . . . . 1 . . . . Misfires 5 | . . . . . . . . . 1 . 1 . . . 1 1 . . . . . . . . . . . . . 1 . . . . Alerts 5 | . . . . . . . . . 1 . . . . . . 3 . . . . . . . . . . . . . . 1 . . . Weapon Failures 8 | . . . . . . . . . 2 1 . . . . 2 2 . . . . . . . . . . . . . . 1 . . . Overload Shots . | . . . . . . . . . . . . . . . . . . . . . . . . . . . . . . . . . . . Overflow Damage 608 | . . . 283 . . . 21 . 18 52 . . 8 . . . . . . . . 128 . . . 36 . . . . . 45 3 14 Projectiles 73 | . . . . . . . 21 . . 52 . . . . . . . . . . . . . . . . . . . . . . . . Explosions 535 | . . . 283 . . . . . 18 . . . 8 . . . . . . . . 128 . . . 36 . . . . . 45 3 14 Melee . | . . . . . . . . . . . . . . . . . . . . . . . . . . . . . . . . . . . Knockbacks 28 | . . . 1 . . . 3 . 17 7 . . . . . . . . . . . . . . . . . . . . . . . . Impact 2 | . . . 1 . . . 1 . . . . . . . . . . . . . . . . . . . . . . . . . . . Kinetic 26 | . . . . . . . 2 . 17 7 . . . . . . . . . . . . . . . . . . . . . . . . Secondary . | . . . . . . . . . . . . . . . . . . . . . . . . . . . . . . . . . . . Self-Inflicted Damage 941 | . . . . . . . . 40 45 113 . . . . . 72 . . . . . 74 . . . 9 . . . . . 235 241 112 Shots 28 | . . . . . . . . 1 2 1 . . . . . 1 . . . . . 2 . . . 1 . . . . . 5 11 4 Rammed 14 | . . . . 4 . . 2 . 3 4 . . . . . . . . . . . . . . . . . . . 1 . . . . Targets Rammed 25 | . . 1 3 5 . 3 2 . 3 7 . . . . . . . . . . . . . . . . . . . 1 . . . . Kicked 4 | . . 1 3 . . . . . . . . . . . . . . . . . . . . . . . . . . . . . . . Crushed 7 | . . . . 1 . 3 . . . 3 . . . . . . . . . . . . . . . . . . . . . . . . Highest Temperature 488 | 154 50 34 364 . . 6 189 25 189 240 352 367 163 . 488 366 152 . 136 134 2 340 395 47 157 342 325 104 42 458 266 152 470 159 Average Temperature 100 | 60 24 21 150 . . 3 60 16 45 53 140 171 49 . 139 111 55 . 62 54 2 118 133 13 60 111 112 22 20 110 114 87 162 85 Received Heat Transfer 3006 | . . 90 101 . . 36 162 180 1149 624 . 36 36 . 27 . 9 . . . . 61 . 9 . 84 9 . . 147 81 90 . 75 Effects 20 | . . . . . . . . . . . . 3 . . 3 4 . . . . . 2 3 . . 3 1 . . 1 . . . . Shutdowns 1 | . . . . . . . . . . . . . . . . . . . . . . . . . . . . . . 1 . . . . Energy Bleed 10 | . . . . . . . . . . . . 2 . . 1 2 . . . . . 1 2 . . 1 1 . . . . . . . Interference 2 | . . . . . . . . . . . . . . . . . . . . . . . . . . 2 . . . . . . . . Matter Decay 4 | . . . . . . . . . . . . 1 . . 1 2 . . . . . . . . . . . . . . . . . . Short Circuit 3 | . . . . . . . . . . . . . . . 1 . . . . . . 1 1 . . . . . . . . . . . Siege Activations . | . . . . . . . . . . . . . . . . . . . . . . . . . . . . . . . . . . . Robots Corrupted . | . . . . . . . . . . . . . . . . . . . . . . . . . . . . . . . . . . . Combat Hostiles . | . . . . . . . . . . . . . . . . . . . . . . . . . . . . . . . . . . . Parts Fried . | . . . . . . . . . . . . . . . . . . . . . . . . . . . . . . . . . . . Impact Corruptions . | . . . . . . . . . . . . . . . . . . . . . . . . . . . . . . . . . . . Robots Melted 3 | . . . . . . . . . . . . . . . . . . . . . . . . . . . . . . . . . 3 . Combat Hostiles 3 | . . . . . . . . . . . . . . . . . . . . . . . . . . . . . . . . . 3 . Parts Melted 28 | 5 . . . . . 1 . . . . . . . . . . . . . . . . 2 . . . . . . . . . 20 . Heat Transferred 6821 | 1036 37 100 450 . . . . . . . . . . . . 50 . . . . . 40 . . . . . . . . . 222 4545 341 Parts Sabotaged . | . . . . . . . . . . . . . . . . . . . . . . . . . . . . . . . . . . . Parts Stolen . | . . . . . . . . . . . . . . . . . . . . . . . . . . . . . . . . . . . Parts Stripped . | . . . . . . . . . . . . . . . . . . . . . . . . . . . . . . . . . . . Power Chain Reactions . | . . . . . . . . . . . . . . . . . . . . . . . . . . . . . . . . . . . Alert | -11 -10 -10 -9 -9 -9 -8 -8 -8 -8 -7 -7 -7 -7 -7 -7 -7 -7 -7 -7 -6 -6 -6 -6 -6 -6 -6 -5 -4 -4 -4 -4 -4 -4 -3 ------- Run | Yrd Mat Min Mat Min Exi Min Mat Sto Gar Fac Was Fac Gar Fac Gar Fac Low Low Zio Pro Fac Ext Cet Arc Hub Gar Fac Fac Was Fac Upp Upp War Pro Peak Influence 2069 | 55 35 91 536 247 . 95 256 48 1246 1178 466 557 715 375 800 792 . . . . 84 855 543 563 419 2069 1283 598 224 924 . . . . Initial 1085 | . 35 13 . 204 . . 3 . 14 653 412 319 398 375 279 420 . . . . 59 40 478 217 196 293 1085 578 209 142 . . . . Average 528 | 21 35 57 202 216 . 51 82 8 612 795 452 411 625 375 577 538 . . . . 73 413 506 472 315 1488 1157 580 219 536 . . . . Maximum Alert Level 5 | . . . 2 1 . . 1 . 4 4 2 2 3 1 3 3 . . . . . 3 2 2 2 5 4 2 1 3 . . . . Low Security (%) 26 | 100 100 100 58 . . 100 86 100 9 . . . . . . . . . . . 100 16 . . . . . . . 19 . . . . Level 1 13 | . . . 16 100 . . 13 . 18 . . 47 5 100 33 . . . . . . 24 . 10 92 1 . . 100 11 . . . . Level 2 31 | . . . 24 . . . . . 34 46 100 52 56 . 25 86 . . . . . 52 100 89 7 4 . 100 . 25 . . . . Level 3 15 | . . . . . . . . . 25 39 . . 37 . 40 13 . . . . . 6 . . . 22 12 . . 43 . . . . Level 4 8 | . . . . . . . . . 11 14 . . . . . . . . . . . . . . . 11 87 . . . . . . . Level 5 4 | . . . . . . . . . . . . . . . . . . . . . . . . . . 60 . . . . . . . . High Security . | . . . . . . . . . . . . . . . . . . . . . . . . . . . . . . . . . . . Max Security . | . . . . . . . . . . . . . . . . . . . . . . . . . . . . . . . . . . . Squads Dispatched 61 | . 1 . . . . . 6 3 . 16 . 1 . 1 . 5 . . . . 2 5 1 . 1 . 6 . . 12 . 1 . . Investigation 18 | . . . . . . . 2 . . 3 . 1 . 1 . 4 . . . . 2 2 1 . . . 1 . . 1 . . . . Extermination 5 | . . . . . . . . . . 3 . . . . . . . . . . . . . . . . . . . 2 . . . . Reinforcement 14 | . 1 . . . . . 1 . . . . . . . . 1 . . . . . 2 . . . . 4 . . 5 . . . . Assault 7 | . . . . . . . 1 2 . 1 . . . . . . . . . . . 1 . . . . . . . 1 . 1 . . Garrison 17 | . . . . . . . 2 1 . 9 . . . . . . . . . . . . . . 1 . 1 . . 3 . . . . Intercept . | . . . . . . . . . . . . . . . . . . . . . . . . . . . . . . . . . . . Searches Triggered . | . . . . . . . . . . . . . . . . . . . . . . . . . . . . . . . . . . . Construction Impeded 3 | . . . . . . . . . . . . . . . . . . . . . . 1 . . . . 1 . . 1 . . . . Haulers Reinforced 1 | . . . . . . . . . . . . . . . . . . . . . . . . . . . . . . 1 . . . . Active Scanning Responses . | . . . . . . . . . . . . . . . . . . . . . . . . . . . . . . . . . . . Cargo Convoy Interrupts . | . . . . . . . . . . . . . . . . . . . . . . . . . . . . . . . . . . . Stealth | -11 -10 -10 -9 -9 -9 -8 -8 -8 -8 -7 -7 -7 -7 -7 -7 -7 -7 -7 -7 -6 -6 -6 -6 -6 -6 -6 -5 -4 -4 -4 -4 -4 -4 -3 --------- Run | Yrd Mat Min Mat Min Exi Min Mat Sto Gar Fac Was Fac Gar Fac Gar Fac Low Low Zio Pro Fac Ext Cet Arc Hub Gar Fac Fac Was Fac Upp Upp War Pro Distress Signals 25 | . . . 3 1 . . 3 . . 1 . . . . . . . . . . . 4 1 . 1 1 1 . . 6 . . 3 . Communications Jammed 69 | . . . . . . . . . . . . . . . . . . . . . . . . . . . . . . 69 . . . . Distress Signals 69 | . . . . . . . . . . . . . . . . . . . . . . . . . . . . . . 69 . . . . Times Spotted 417 | . 2 5 20 2 . 7 10 13 37 32 9 7 8 . 11 10 11 . . 5 1 37 5 27 5 34 24 . 5 32 1 14 35 8 Peak Tracking Total 12 | . 1 2 6 1 . 4 5 10 5 6 6 3 4 . 5 2 8 . . 4 1 5 5 1 2 7 7 . 5 7 1 8 12 9 Tactical Retreats 29 | . . 1 . . . . 1 . 1 2 1 1 . . . 2 4 . . . 1 1 1 . . 2 7 . . 1 . 2 1 . Traps | -11 -10 -10 -9 -9 -9 -8 -8 -8 -8 -7 -7 -7 -7 -7 -7 -7 -7 -7 -7 -6 -6 -6 -6 -6 -6 -6 -5 -4 -4 -4 -4 -4 -4 -3 ------- Run | Yrd Mat Min Mat Min Exi Min Mat Sto Gar Fac Was Fac Gar Fac Gar Fac Low Low Zio Pro Fac Ext Cet Arc Hub Gar Fac Fac Was Fac Upp Upp War Pro Traps Triggered 23 | . . . . . . . 1 1 . 3 . 2 3 . 1 . . . . . 1 4 . . . 3 1 1 . 1 . . 1 . Indirectly . | . . . . . . . . . . . . . . . . . . . . . . . . . . . . . . . . . . . Trap Hack Attempts . | . . . . . . . . . . . . . . . . . . . . . . . . . . . . . . . . . . . Triggered . | . . . . . . . . . . . . . . . . . . . . . . . . . . . . . . . . . . . Disarmed . | . . . . . . . . . . . . . . . . . . . . . . . . . . . . . . . . . . . Reprogrammed . | . . . . . . . . . . . . . . . . . . . . . . . . . . . . . . . . . . . Reused . | . . . . . . . . . . . . . . . . . . . . . . . . . . . . . . . . . . . Traps Extracted . | . . . . . . . . . . . . . . . . . . . . . . . . . . . . . . . . . . . Installed . | . . . . . . . . . . . . . . . . . . . . . . . . . . . . . . . . . . . Triggered 11 | . . . . . . . . . . . . . . . . . . . . . . . . . . . . . . . . . 11 . Machines | -11 -10 -10 -9 -9 -9 -8 -8 -8 -8 -7 -7 -7 -7 -7 -7 -7 -7 -7 -7 -6 -6 -6 -6 -6 -6 -6 -5 -4 -4 -4 -4 -4 -4 -3 ---------- Run | Yrd Mat Min Mat Min Exi Min Mat Sto Gar Fac Was Fac Gar Fac Gar Fac Low Low Zio Pro Fac Ext Cet Arc Hub Gar Fac Fac Was Fac Upp Upp War Pro Machines Disabled 72 | . . 1 14 . . . . . 6 4 . . 2 . 5 6 . . . . . 5 1 4 2 9 3 1 . 9 . . . . Max in Single Turn 13 | . . 1 13 . . . . . 1 1 . . 1 . 1 3 . . . . . 1 . 1 1 1 1 1 . 4 . . . . Garrison Access 3 | . . . . . . . 1 . . . . . . . . . . . . . . . . . . . 1 . . 1 . . . . Garrison Relay 14 | . . . . . . . . . 4 . . . 2 . 3 . . . . . . . . . . 5 . . . . . . . . Phase Generator 1 | . . . . . . . . . . . . . . . . . . . . . . . . . . 1 . . . . . . . . Energy Cycler 2 | . . . . . . . . . . . . . . . . . . . . . . 2 . . . . . . . . . . . . Machines Repaired . | . . . . . . . . . . . . . . . . . . . . . . . . . . . . . . . . . . . Machines Dismantled . | . . . . . . . . . . . . . . . . . . . . . . . . . . . . . . . . . . . Machines Sabotaged . | . . . . . . . . . . . . . . . . . . . . . . . . . . . . . . . . . . . Overloaded Fab Kills . | . . . . . . . . . . . . . . . . . . . . . . . . . . . . . . . . . . . Hacking | -11 -10 -10 -9 -9 -9 -8 -8 -8 -8 -7 -7 -7 -7 -7 -7 -7 -7 -7 -7 -6 -6 -6 -6 -6 -6 -6 -5 -4 -4 -4 -4 -4 -4 -3 --------- Run | Yrd Mat Min Mat Min Exi Min Mat Sto Gar Fac Was Fac Gar Fac Gar Fac Low Low Zio Pro Fac Ext Cet Arc Hub Gar Fac Fac Was Fac Upp Upp War Pro Machines Accessed 88 | . . 1 3 . 2 . 6 1 2 8 . 9 1 2 2 9 . . 1 . 5 11 1 . 3 2 10 2 . 3 . . 4 . Terminals 55 | . . . 3 . . . 4 . 2 3 . 6 1 . 2 5 . . . . 3 11 1 . 2 2 8 1 . 1 . . . . Fabricators 7 | . . . . . . . . . . 3 . 2 . . . . . . . . 2 . . . . . . . . . . . . . Repair Stations 4 | . . . . . . . . . . 1 . . . 1 . 1 . . . . . . . . . . . 1 . . . . . . Recycling Units 1 | . . . . . . . . . . . . . . . . 1 . . . . . . . . . . . . . . . . . . Scanalyzers 5 | . . . . . . . 2 . . . . . . . . 2 . . . . . . . . . . . . . 1 . . . . Garrison Access 8 | . . . . . . . . 1 . 1 . 1 . 1 . . . . . . . . . . 1 . 2 . . 1 . . . . Total Hacks 205 | . . 1 3 . 2 . 21 3 5 18 . 21 2 3 4 23 . . 5 . 12 28 3 . 4 3 18 8 . 8 . . 10 . Successful 95 | . . 1 . . 2 . 12 1 . 11 . 7 . 2 1 12 . . 5 . 8 10 . . 1 . 6 2 . 4 . . 10 . Failed 110 | . . . 3 . . . 9 2 5 7 . 14 2 1 3 11 . . . . 4 18 3 . 3 3 12 6 . 4 . . . . Catastrophic 28 | . . . 3 . . . 1 . 2 . . 3 1 . 1 3 . . . . 2 3 1 . 1 2 3 2 . . . . . . Database Lockouts . | . . . . . . . . . . . . . . . . . . . . . . . . . . . . . . . . . . . Manual 73 | . . . 3 . 1 . 10 . . 6 . 11 . 1 . 8 . . . . 4 13 1 . 3 . 5 4 . 3 . . . . Terminals 123 | . . . 3 . . . 15 . 5 7 . 14 2 . 4 10 . . . . 5 28 3 . 3 3 15 4 . 2 . . . . Fabricators 19 | . . . . . . . . . . 6 . 6 . . . . . . . . 7 . . . . . . . . . . . . . Repair Stations 12 | . . . . . . . . . . 3 . . . 2 . 3 . . . . . . . . . . . 4 . . . . . . Recycling Units 4 | . . . . . . . . . . . . . . . . 4 . . . . . . . . . . . . . . . . . . Scanalyzers 17 | . . . . . . . 6 . . . . . . . . 6 . . . . . . . . . . . . . 5 . . . . Garrison Access 12 | . . . . . . . . 3 . 2 . 1 . 1 . . . . . . . . . . 1 . 3 . . 1 . . . . Terminal Hacks 46 | . . 1 . . 2 . 7 . . 1 . 2 . . 1 3 . . 5 . 2 7 . . . . 4 . . 1 . . 10 . Record 11 | . . . . . 1 . . . . . . . . . . . . . . . . . . . . . . . . . . . 10 . Part Schematic 5 | . . . . . . . . . . . . . . . . . . . 5 . . . . . . . . . . . . . . . Robot Analysis 2 | . . . . . . . 2 . . . . . . . . . . . . . . . . . . . . . . . . . . . Prototype ID Bank 1 | . . . . . . . 1 . . . . . . . . . . . . . . . . . . . . . . . . . . . Open Door 6 | . . 1 . . . . . . . . . . . . . . . . . . 1 4 . . . . . . . . . . . . Branch Access Points 2 | . . . . . . . . . . . . . . . . 1 . . . . . . . . . . . . . 1 . . . . Machine Index 1 | . . . . . . . . . . 1 . . . . . . . . . . . . . . . . . . . . . . . . Terminal Index 4 | . . . . . . . 1 . . . . 1 . . . 1 . . . . . . . . . . 1 . . . . . . . Scanalyzer Index 1 | . . . . . . . 1 . . . . . . . . . . . . . . . . . . . . . . . . . . . Garrison Index 1 | . . . . . . . . . . . . 1 . . . . . . . . . . . . . . . . . . . . . . Alert Level 3 | . . . . . . . 1 . . . . . . . . . . . . . . 1 . . . . 1 . . . . . . . Unreport Threat 4 | . . . . . . . . . . . . . . . . 1 . . . . . 1 . . . . 2 . . . . . . . Locate Traps 2 | . . . . . . . . . . . . . . . . . . . . . 1 1 . . . . . . . . . . . . Zone Layout 1 | . . . . . . . 1 . . . . . . . . . . . . . . . . . . . . . . . . . . . Garrison Registry 1 | . . . . . . . . . . . . . . . 1 . . . . . . . . . . . . . . . . . . . Derelict Proto ID Bank 1 | . . . . . 1 . . . . . . . . . . . . . . . . . . . . . . . . . . . . . Fabricator Hacks 12 | . . . . . . . . . . 5 . 3 . . . . . . . . 4 . . . . . . . . . . . . . Network Status 2 | . . . . . . . . . . 1 . 1 . . . . . . . . . . . . . . . . . . . . . . Load Schematic 6 | . . . . . . . . . . 2 . 1 . . . . . . . . 3 . . . . . . . . . . . . . Build 4 | . . . . . . . . . . 2 . 1 . . . . . . . . 1 . . . . . . . . . . . . . Repair Station Hacks 5 | . . . . . . . . . . 2 . . . . . 2 . . . . . . . . . . . 1 . . . . . . Scan Component 3 | . . . . . . . . . . 1 . . . . . 1 . . . . . . . . . . . 1 . . . . . . Repair 2 | . . . . . . . . . . 1 . . . . . 1 . . . . . . . . . . . . . . . . . . Recycling Unit Hacks 2 | . . . . . . . . . . . . . . . . 2 . . . . . . . . . . . . . . . . . . Report Inventory 1 | . . . . . . . . . . . . . . . . 1 . . . . . . . . . . . . . . . . . . Retrieve Matter 1 | . . . . . . . . . . . . . . . . 1 . . . . . . . . . . . . . . . . . . Scanalyzer 9 | . . . . . . . 3 . . . . . . . . 4 . . . . . . . . . . . . . 2 . . . . Insert Component 5 | . . . . . . . 2 . . . . . . . . 2 . . . . . . . . . . . . . 1 . . . . Analyze 4 | . . . . . . . 1 . . . . . . . . 2 . . . . . . . . . . . . . 1 . . . . Garrison Access Hacks 6 | . . . . . . . . 1 . 1 . 1 . 1 . . . . . . . . . . 1 . 1 . . . . . . . Unlock Access 5 | . . . . . . . . 1 . 1 . 1 . 1 . . . . . . . . . . 1 . . . . . . . . . Seal Access 1 | . . . . . . . . . . . . . . . . . . . . . . . . . . . 1 . . . . . . . Unauthorized Hacks 15 | . . . . . . . 2 . . 2 . 1 . 1 . 1 . . . . 2 3 . . . . 1 1 . 1 . . . . Terminals 11 | . . . . . . . 2 . . 2 . 1 . . . . . . . . 1 3 . . . . 1 1 . . . . . . Botnet 11 | . . . . . . . 2 . . 2 . 1 . . . . . . . . 1 3 . . . . 1 1 . . . . . . Fabricators 1 | . . . . . . . . . . . . . . . . . . . . . 1 . . . . . . . . . . . . . Recompile 1 | . . . . . . . . . . . . . . . . . . . . . 1 . . . . . . . . . . . . . Repair Stations 2 | . . . . . . . . . . . . . . 1 . 1 . . . . . . . . . . . . . . . . . . Patch 2 | . . . . . . . . . . . . . . 1 . 1 . . . . . . . . . . . . . . . . . . Recycling Units . | . . . . . . . . . . . . . . . . . . . . . . . . . . . . . . . . . . . Scanalyzers . | . . . . . . . . . . . . . . . . . . . . . . . . . . . . . . . . . . . Garrison Access 1 | . . . . . . . . . . . . . . . . . . . . . . . . . . . . . . 1 . . . . Jam 1 | . . . . . . . . . . . . . . . . . . . . . . . . . . . . . . 1 . . . . Data Cores Recovered 4 | . . . . . . . . . . . . . . . . . . . . . . . . . 2 . 2 . . . . . . . Used 3 | . . . . . . . . . . . . . . . . . . . . . . . . . 2 . 1 . . . . . . . Hacking Detections 68 | . . . 3 . . . 5 1 2 8 . 8 1 2 2 8 . . . . 3 8 1 . 2 2 8 2 . 2 . . . . Full Trace Events 14 | . . . . . . . 1 . 2 3 . 1 . . . 3 . . . . 1 1 1 . . . 1 . . . . . . . Feedback Events . | . . . . . . . . . . . . . . . . . . . . . . . . . . . . . . . . . . . Feedback Blocked . | . . . . . . . . . . . . . . . . . . . . . . . . . . . . . . . . . . . Robot Schematics Acquired 4 | . . . . . . . . . . . . . . . . . . . 4 . . . . . . . . . . . . . . . Robots Built . | . . . . . . . . . . . . . . . . . . . . . . . . . . . . . . . . . . . Authchips . | . . . . . . . . . . . . . . . . . . . . . . . . . . . . . . . . . . . Time . | . . . . . . . . . . . . . . . . . . . . . . . . . . . . . . . . . . . Total Robot Build Rating . | . . . . . . . . . . . . . . . . . . . . . . . . . . . . . . . . . . . Part Schematics Acquired 21 | . . . . . . . 1 . . . . . . . . 1 . . 19 . . . . . . . . . . . . . . . Parts Built 2 | . . . . . . . . . . 1 . . . . . . . . . . 1 . . . . . . . . . . . . . Authchips 1 | . . . . . . . . . . . . . . . . . . . . . 1 . . . . . . . . . . . . . Time 328 | . . . . . . . . . . 232 . 58 . . . . . . . . 38 . . . . . . . . . . . . . Total Part Build Rating 6 | . . . . . . . . . . 3 . . . . . . . . . . 3 . . . . . . . . . . . . . Parts Repaired 2 | . . . . . . . . . . 1 . . . . . 1 . . . . . . . . . . . . . . . . . . Time 73 | . . . . . . . . . . 13 . . . . . 60 . . . . . . . . . . . . . . . . . . Parts Recycled . | . . . . . . . . . . . . . . . . . . . . . . . . . . . . . . . . . . . Recycled Matter . | . . . . . . . . . . . . . . . . . . . . . . . . . . . . . . . . . . . Retrieved Matter 86 | . . . . . . . . . . . . . . . . 86 . . . . . . . . . . . . . . . . . . Retrieved Components . | . . . . . . . . . . . . . . . . . . . . . . . . . . . . . . . . . . . Parts Scanalyzed 3 | . . . . . . . 1 . . . . . . . . 1 . . . . . . . . . . . . . 1 . . . . Part Schematics Acquired 2 | . . . . . . . 1 . . . . . . . . 1 . . . . . . . . . . . . . . . . . . Parts Damaged 1 | . . . . . . . . . . . . . . . . 1 . . . . . . . . . . . . . . . . . . Bothacking | -11 -10 -10 -9 -9 -9 -8 -8 -8 -8 -7 -7 -7 -7 -7 -7 -7 -7 -7 -7 -6 -6 -6 -6 -6 -6 -6 -5 -4 -4 -4 -4 -4 -4 -3 ------------ Run | Yrd Mat Min Mat Min Exi Min Mat Sto Gar Fac Was Fac Gar Fac Gar Fac Low Low Zio Pro Fac Ext Cet Arc Hub Gar Fac Fac Was Fac Upp Upp War Pro Used RIF Installer . | . . . . . . . . . . . . . . . . . . . . . . . . . . . . . . . . . . . Robots Hacked 4 | . . . . . 4 . . . . . . . . . . . . . . . . . . . . . . . . . . . . . Non-combat 3 | . . . . . 3 . . . . . . . . . . . . . . . . . . . . . . . . . . . . . Combat 1 | . . . . . 1 . . . . . . . . . . . . . . . . . . . . . . . . . . . . . Robot Hacks Applied 4 | . . . . . 4 . . . . . . . . . . . . . . . . . . . . . . . . . . . . . parse_system 4 | . . . . . 4 . . . . . . . . . . . . . . . . . . . . . . . . . . . . . Relay Couplers Released 60 | . . . . . . . 3 . 16 . . . 8 . 11 . . . . . . . . . . 22 . . . . . . . . Machine Destruction 60 | . . . . . . . 3 . 16 . . . 8 . 11 . . . . . . . . . . 22 . . . . . . . . Fabnet Peak Effective % . | . . . . . . . . . . . . . . . . . . . . . . . . . . . . . . . . . . . Robots Rewired 21 | . . . . . . . . . . . . . . . . . . . . . . 14 . . . 7 . . . . . . . . Allies Hacked . | . . . . . . . . . . . . . . . . . . . . . . . . . . . . . . . . . . . Hacks Repelled . | . . . . . . . . . . . . . . . . . . . . . . . . . . . . . . . . . . . Allies | -11 -10 -10 -9 -9 -9 -8 -8 -8 -8 -7 -7 -7 -7 -7 -7 -7 -7 -7 -7 -6 -6 -6 -6 -6 -6 -6 -5 -4 -4 -4 -4 -4 -4 -3 -------- Run | Yrd Mat Min Mat Min Exi Min Mat Sto Gar Fac Was Fac Gar Fac Gar Fac Low Low Zio Pro Fac Ext Cet Arc Hub Gar Fac Fac Was Fac Upp Upp War Pro Total Allies 64 | . . 1 . 3 . . . 2 . . 20 . . . . . . . . . . 22 5 . . 10 . . 1 . . . . . Largest Group 20 | . . 1 . 3 3 3 . 2 . . 20 . . . . . . . . . . 8 6 5 5 7 2 . 1 . . . . . Highest-Rated Group 591 | . . 31 . 40 40 40 . 62 . . 496 . . . . . . . . . . 389 591 480 437 361 184 . 46 . . . . . Highest-Rated Ally 159 | . . 31 . 16 16 16 . 31 . . 35 . . . . . . . . . . 159 143 96 96 96 96 . 46 . . . . . Total Orders 7 | . . . . . . . . . . . . . . . . . . . . . . . . 2 5 . . . . . . . . . STAY 2 | . . . . . . . . . . . . . . . . . . . . . . . . 1 1 . . . . . . . . . FOLLOW 2 | . . . . . . . . . . . . . . . . . . . . . . . . 1 1 . . . . . . . . . EXPLORE 1 | . . . . . . . . . . . . . . . . . . . . . . . . . 1 . . . . . . . . . RETURN 2 | . . . . . . . . . . . . . . . . . . . . . . . . . 2 . . . . . . . . . Ally Attacks 553 | . . 7 . 15 . 25 . 4 . . 108 . . . . . . . . . . 187 39 17 12 107 26 . 6 . . . . . Total Damage 13776 | . . 84 . 157 . 192 . 64 . . 3915 . . . . . . . . . . 3107 799 499 383 3636 786 . 154 . . . . . Kills 76 | . . 1 . 1 . 2 . 1 . . 6 . . . . . . . . . . 22 3 3 4 29 4 . . . . . . . Allies Corrupted . | . . . . . . . . . . . . . . . . . . . . . . . . . . . . . . . . . . . Allies Melted 1 | . . . . . . . . . . . . . . . . . . . . . . . 1 . . . . . . . . . . . Intel | -11 -10 -10 -9 -9 -9 -8 -8 -8 -8 -7 -7 -7 -7 -7 -7 -7 -7 -7 -7 -6 -6 -6 -6 -6 -6 -6 -5 -4 -4 -4 -4 -4 -4 -3 ------- Run | Yrd Mat Min Mat Min Exi Min Mat Sto Gar Fac Was Fac Gar Fac Gar Fac Low Low Zio Pro Fac Ext Cet Arc Hub Gar Fac Fac Was Fac Upp Upp War Pro Robot Analysis Total 2 | . . . . . . . 2 . . . . . . . . . . . . . . . . . . . . . . . . . . . Derelict Logs Recovered 11 | . . 2 . 1 . . . . . . . . . . . . 1 2 2 1 . . . . . . . . . . 2 . . . Drone Launches 3 | . . . . . . . . . . . . . . . . . . . . . . . . . 3 . . . . . . . . . Drone Recoveries 3 | . . . . . . . . . . . . . . . . . . . . . . . . . 3 . . . . . . . . . Exploration | -11 -10 -10 -9 -9 -9 -8 -8 -8 -8 -7 -7 -7 -7 -7 -7 -7 -7 -7 -7 -6 -6 -6 -6 -6 -6 -6 -5 -4 -4 -4 -4 -4 -4 -3 ------------- Run | Yrd Mat Min Mat Min Exi Min Mat Sto Gar Fac Was Fac Gar Fac Gar Fac Low Low Zio Pro Fac Ext Cet Arc Hub Gar Fac Fac Was Fac Upp Upp War Pro Turns Passed 17922 | 274 85 986 609 349 893 472 952 94 1478 1529 285 337 216 57 455 816 116 97 382 137 118 1169 367 382 247 967 764 46 26 1097 719 444 772 185 Spaces Moved 16438 | 126 56 522 280 203 552 268 490 51 632 591 522 996 314 86 731 1502 325 323 1074 372 321 1072 281 276 258 903 1058 85 75 621 338 215 633 286 Core 629 | 14 . . . . . . . . . 1 . . . . . . . . . . . . . . . . . . . . . 42 312 260 Treads 3687 | . . . 43 203 552 268 490 51 632 502 . . . . . . . . . . . . . . . . . . . 320 338 173 89 26 Legs 927 | 112 56 522 237 . . . . . . . . . . . . . . . . . . . . . . . . . . . . . . . Wheels . | . . . . . . . . . . . . . . . . . . . . . . . . . . . . . . . . . . . Hover 3067 | . . . . . . . . . . . . . . . . . . . . . . . . 155 258 903 1058 85 75 301 . . 232 . Flight 8128 | . . . . . . . . . . 88 522 996 314 86 731 1502 325 323 1074 372 321 1072 281 121 . . . . . . . . . . Fastest Speed 26 | 50 120 120 120 160 160 160 160 160 160 26 26 26 26 26 26 30 30 30 30 30 27 27 27 30 44 44 40 33 33 33 152 50 50 50 Average Speed 73 | 112 120 178 150 160 160 160 160 160 162 150 47 26 26 26 27 30 30 30 30 30 27 28 29 71 44 44 40 35 33 113 189 156 106 60 Slowest Speed 1300 | 120 120 190 190 160 160 160 160 160 240 1300 91 26 26 26 91 30 30 30 30 30 27 95 30 162 44 104 48 40 33 320 232 232 450 163 Overloaded Moves . | . . . . . . . . . . . . . . . . . . . . . . . . . . . . . . . . . . . Propulsion Burnouts . | . . . . . . . . . . . . . . . . . . . . . . . . . . . . . . . . . . . Robots Hopped 30 | . . . . . . . . . . 3 . 6 . . 2 13 . . . 1 . 3 2 . . . . . . . . . . . Cave-ins Triggered 1 | . . . . . . . . . 1 . . . . . . . . . . . . . . . . . . . . . . . . . Exploration Rate (%) 46 | 5 14 94 38 30 71 42 54 16 73 13 95 35 33 2 67 37 53 51 85 46 8 67 48 88 21 87 23 3 69 12 62 39 84 50 Regions Visited 34 Branch Regions 17 Pre-discovered Areas 7 | . . . . . 1 . . . . . . . . . . . 2 2 1 . . . . . . . . . . . . . 1 . Known Exits Taken 8 | . . . . 1 . . . 1 . . . 1 . 1 . 1 . . . . 1 . . . 1 . . . . 1 . . . . Unknown Exits Taken 18 | 1 1 1 1 . 1 1 1 . . . . . . . . . 1 1 1 1 . 1 1 1 . . 1 . . . 1 1 1 . Scrap Searched 12 | . . 2 . 1 . 1 . . . . . . . . . . 2 . 4 1 . . . . . . . . . . 1 . . . Spaces Dug 77 | . . . . . . . 5 . 13 9 . . . . . . . . . . . 1 . . . 1 15 . . 17 . . . 16 Terrain Destroyed 1154 | . . 13 51 . . . 7 28 61 45 1 . 12 . 76 82 2 . 1 16 . 237 3 2 3 81 38 1 . 124 2 213 28 27 Melee . | . . . . . . . . . . . . . . . . . . . . . . . . . . . . . . . . . . . Projectile 173 | . . . . . . . 7 . . 2 1 . . . . 6 2 . 1 1 . 21 3 2 3 3 38 1 . 70 2 8 . 2 AOE 980 | . . 13 51 . . . . 28 61 43 . . 12 . 76 76 . . . 15 . 216 . . . 78 . . . 53 . 205 28 25 Terrain Rammed . | . . . . . . . . . . . . . . . . . . . . . . . . . . . . . . . . . . . Walls Destroyed . | . . . . . . . . . . . . . . . . . . . . . . . . . . . . . . . . . . . Machines Disabled . | . . . . . . . . . . . . . . . . . . . . . . . . . . . . . . . . . . . Actions | -11 -10 -10 -9 -9 -9 -8 -8 -8 -8 -7 -7 -7 -7 -7 -7 -7 -7 -7 -7 -6 -6 -6 -6 -6 -6 -6 -5 -4 -4 -4 -4 -4 -4 -3 --------- Run | Yrd Mat Min Mat Min Exi Min Mat Sto Gar Fac Was Fac Gar Fac Gar Fac Low Low Zio Pro Fac Ext Cet Arc Hub Gar Fac Fac Was Fac Upp Upp War Pro Total 20972 | 193 66 559 399 223 560 291 592 60 856 1078 543 1055 434 121 946 1821 335 322 1111 389 347 1855 543 417 382 1423 1324 98 75 865 400 292 705 292 Wait 2698 | 23 . 15 26 13 . 7 38 . 58 281 3 40 48 33 127 296 3 . 3 12 . 468 233 36 115 379 191 . . 136 51 41 22 . Move 16350 | 125 55 521 279 202 551 267 489 51 631 585 521 984 313 86 726 1477 324 322 1073 369 320 1065 276 275 257 901 1057 85 74 620 337 214 632 286 Hop 27 | . . . . . . . . . . 3 . 6 . . 1 11 . . . 1 . 3 2 . . . . . . . . . . . Pick Up 101 | 3 3 7 16 . 1 . 8 . 4 25 . 2 . . 9 2 . . . . 3 1 2 . . 1 1 2 . 5 . 1 5 . Fast Attach 134 | 7 2 1 4 . . . 2 3 6 14 4 6 . . 2 2 . . 2 . 1 5 5 8 3 . 15 5 1 16 4 2 14 . Attach 56 | . . 1 7 . 1 . 2 . 13 17 . 1 . . 2 . . . . . 2 2 1 . . . 2 . . 1 . 2 1 1 Detach 5 | . . . 1 . . . . . . . . . . . . . . . . . . 1 . . . . 1 . . 1 . . . 1 Swap 89 | . . . 9 1 1 2 4 1 11 11 . . 6 1 12 2 . . . 2 1 10 1 2 . 6 2 . . 2 . 1 1 . Drop 168 | . 2 3 15 1 2 2 7 3 1 35 4 5 1 1 12 4 . . 2 . 1 7 8 6 3 2 9 5 . 7 . 4 15 1 Fire 892 | 35 4 10 39 1 . 10 40 2 129 82 11 11 12 . 36 27 8 . 31 5 4 77 15 90 4 36 43 1 . 76 8 27 15 3 Melee 8 | . . . . . 4 . . . . . . . . . 1 . . . . . . . . . . . 3 . . . . . . . Ram . | . . . . . . . . . . . . . . . . . . . . . . . . . . . . . . . . . . . Kick 4 | . . 1 3 . . . . . . . . . . . . . . . . . . . . . . . . . . . . . . . Crush 21 | . . . . 5 . 3 2 . 3 7 . . . . . . . . . . . . . . . . . . . 1 . . . . Escape Stasis 197 | . . . . . . . . . . 18 . . 54 . 18 . . . . . 15 51 . . . 41 . . . . . . . . Rewire 222 | . . . . . . . . . . . . . . . . . . . . . . 165 . . . 57 . . . . . . . . Trap . | . . . . . . . . . . . . . . . . . . . . . . . . . . . . . . . . . . . Miscellaneous . | . . . . . . . . . . . . . . . . . . . . . . . . . . . . . . . . . . . Route ------- -11/Scrapyard -10/Materials -10/Mines -9/Materials -9/Mines (discovered 3 exits: *Mat / *Exi / *Zio) -9/Exiles -8/Mines -8/Materials (discovered 3 exits: *Fac / *Sto x2) -8/Storage (discovered 2 exits: Rec / Gar) -8/Garrison (discovered 2 exits: *Fac x2) -7/Factory -7/Waste -7/Factory (discovered 2 exits: *Fac / Gar) -7/Garrison (discovered 2 exits: *Fac x2) -7/Factory -7/Garrison (discovered 3 exits: *Fac x3) -7/Factory (discovered 4 exits: *Fac x2 / *Low x2) -7/Lower Caves -7/Lower Caves -7/Zion (discovered 2 exits: Dee / [*Pro]) -6/Proximity Caves -6/Factory (discovered 3 exits: Fac / Low / *Ext) -6/Extension (discovered 2 exits: *Fac / *Cet) -6/Cetus -6/Archives (discovered 3 exits: *Fac / *Hub x2) -6/Hub_04(d) -6/Garrison (discovered 3 exits: *Fac x3) -5/Factory (discovered 3 exits: *Fac x2 / [*Upp]) -4/Factory -4/Waste -4/Factory (discovered 2 exits: *Upp x2) -4/Upper Caves -4/Upper Caves -4/Warlord -3/Proximity Caves (discovered 1 exit: Res) History --------- Turn | Location | Event 5 | -11/Scrapyard | Discovered new exit (range 14) 275 | -11/Scrapyard | Entered Materials 298 | -10/Materials | Discovered new exit (range 16) 316 | -10/Materials | Build established: Mutant 360 | -10/Materials | Entered Mines 387 | -10/Mines | Learned Materials trap positions 409 | -10/Mines | Met a Derelict bent on vengeance 478 | -10/Mines | Found the Drone Emporium 483 | -10/Mines | Found Prototype Device 483 | -10/Mines | Identified Sensor Drone Bay 674 | -10/Mines | Received a Mining Laser from a helpful Derelict 770 | -10/Mines | Found a hidden stash of uninstalled traps 1327 | -10/Mines | Discovered new exit (range 11) 1346 | -10/Mines | Entered Materials 1346 | -9/Materials | Evolved 2 slots: Propulsion x2 1347 | -9/Materials | Loaded intel: 19 trap records 1916 | -9/Materials | Discovered new exit (range 15) 1954 | -9/Materials | Build established: Scavenger-Mutant 1955 | -9/Materials | Entered Mines 1968 | -9/Mines | Assisted by bots powering up and referring to "LRC-V3" 1979 | -9/Mines | Discovered new exit (range 11) 1990 | -9/Mines | A Derelict revealed a hidden shortcut to a safe place 2163 | -9/Mines | Identified exit to Exiles 2253 | -9/Mines | Joined a pair of Derelicts in attacking an 0b10 outpost 2294 | -9/Mines | Deemed a non-threat by the Exiles lab entrance 2304 | -9/Mines | Entered Exiles 2304 | -9/Exiles | Accompanied by 3 allies 2343 | -9/Exiles | Met 8R-AWN 2372 | -9/Exiles | Met EX-HEX 2431 | -9/Exiles | Met EX-BIN 2450 | -9/Exiles | Aligned with FarCom system 2452 | -9/Exiles | Given EX-Vault access code 2488 | -9/Exiles | Opened EX-Vault 2533 | -9/Exiles | Warned to stay clear of 0b10 Research branches 2635 | -9/Exiles | Learned location of Zion (-7) 2637 | -9/Exiles | Met EX-DEC 3045 | -9/Exiles | Found YOLO Cannon 3181 | -9/Exiles | Discovered new exit (range 10) 3197 | -9/Exiles | Left Exiles lab with YOLO Cannon 3197 | -9/Exiles | Entered Mines 3197 | -8/Mines | Accompanied by 3 allies 3655 | -8/Mines | Discovered new exit (range 10) 3669 | -8/Mines | Entered Materials 3669 | -8/Materials | Evolved 2 slots: Utility x2 3805 | -8/Materials | Garrison activated, responded to threat 4101 | -8/Materials | Discovered new exit (range 4) 4267 | -8/Materials | Discovered new exit (range 15) 4304 | -8/Materials | Met 7R-MNS 4390 | -8/Materials | Build established: Scavenger-Skirmisher 4416 | -8/Materials | Discovered new exit (range 15) 4621 | -8/Materials | Entered Storage 4622 | -8/Storage | Identified exit to Recycling 4645 | -8/Storage | Met a pair of Derelict thieves 4700 | -8/Storage | Garrison activated, responded to threat 4715 | -8/Storage | Identified exit to Garrison 4715 | -8/Storage | Entered Garrison 4808 | -8/Garrison | Crushed by falling debris 4839 | -8/Garrison | Lost 3 parts (1p1n1u) 4843 | -8/Garrison | Triggered checkpoint 5033 | -8/Garrison | Triggered checkpoint 5116 | -8/Garrison | Build established: Scavenger-Mutant 5149 | -8/Garrison | Triggered checkpoint 5208 | -8/Garrison | Lost 3 parts (3u) 5211 | -8/Garrison | Garrison Relay disabled 5301 | -8/Garrison | Triggered checkpoint 5437 | -8/Garrison | Triggered checkpoint 5529 | -8/Garrison | Discovered new exit (range 11) 5585 | -8/Garrison | Triggered checkpoint 5633 | -8/Garrison | Garrison Relay disabled 5741 | -8/Garrison | Triggered checkpoint 5849 | -8/Garrison | Triggered checkpoint 5865 | -8/Garrison | Garrison Relay disabled 5925 | -8/Garrison | Core integrity fell below 50% 5968 | -8/Garrison | Lost 6 parts (1p2n1u2w) 6061 | -8/Garrison | Discovered new exit (range 13) 6077 | -8/Garrison | Triggered checkpoint 6193 | -8/Garrison | Entered Factory 6193 | -7/Factory | Evolved 2 slots: Weapon x2 6249 | -7/Factory | Repaired Lgt. Treads 6560 | -7/Factory | Build established: Scavenger-Skirmisher 6684 | -7/Factory | Fabricated Enh. Autogun (x1) 7169 | -7/Factory | Garrison activated, responded to threat 7255 | -7/Factory | Destroyed 8 combat bots 7356 | -7/Factory | Identified exit to Garrison 7393 | -7/Factory | First assault squad dispatched 7484 | -7/Factory | Garrison activated, responded to threat 7522 | -7/Factory | Lost 3 parts (2u1w) 7570 | -7/Factory | Lost 3 parts (1n1u1w) 7722 | -7/Factory | Manually triggered Chute Trap 7722 | -7/Factory | Sucked down chute 7722 | -7/Factory | Entered Waste 7723 | -7/Waste | Met a frightened Derelict 7733 | -7/Waste | Spotted C-40 Crusher 7734 | -7/Waste | Spotted C-40 Crusher 7738 | -7/Waste | Spotted C-40 Crusher 7739 | -7/Waste | Spotted C-40 Crusher 7739 | -7/Waste | Spotted C-40 Crusher 7739 | -7/Waste | Spotted C-40 Crusher 7766 | -7/Waste | Warlord forces began an assault 7804 | -7/Waste | Destroyed C-40 Crusher 7808 | -7/Waste | Allies destroyed C-40 Crusher 7817 | -7/Waste | Allies destroyed C-40 Crusher 7827 | -7/Waste | Allies destroyed C-40 Crusher 7827 | -7/Waste | Allies destroyed C-40 Crusher 7877 | -7/Waste | Discovered new exit (range 10) 8007 | -7/Waste | Entered Factory 8029 | -7/Factory | Discovered new exit (range 6) 8260 | -7/Factory | Build established: Sprinter 8344 | -7/Factory | Identified exit to Garrison 8344 | -7/Factory | Entered Garrison 8353 | -7/Garrison | Triggered checkpoint 8370 | -7/Garrison | Triggered checkpoint 8371 | -7/Garrison | Garrison Relay disabled 8395 | -7/Garrison | Discovered new exit (range 6) 8404 | -7/Garrison | Destroyed 7 combat bots 8459 | -7/Garrison | Discovered new exit (range 15) 8466 | -7/Garrison | Triggered checkpoint 8479 | -7/Garrison | Garrison Relay disabled 8548 | -7/Garrison | Triggered checkpoint 8560 | -7/Garrison | Entered Factory 8617 | -7/Factory | Identified exit to Garrison 8617 | -7/Factory | Entered Garrison 8625 | -7/Garrison | Discovered new exit (range 52) 8625 | -7/Garrison | Discovered new exit (range 33) 8625 | -7/Garrison | Discovered new exit (range 51) 8643 | -7/Garrison | Triggered checkpoint 8770 | -7/Garrison | Garrison Relay disabled 8780 | -7/Garrison | Triggered checkpoint 8790 | -7/Garrison | Garrison Relay disabled 8814 | -7/Garrison | Triggered checkpoint 8842 | -7/Garrison | Triggered checkpoint 8876 | -7/Garrison | Garrison Relay disabled 8947 | -7/Garrison | Spotted B-75 Beast 8985 | -7/Garrison | Attempted to access garrison exit controls, blocked by remote lockdown 9072 | -7/Garrison | Entered Factory 9089 | -7/Factory | Discovered new exit (range 6) 9377 | -7/Factory | Identified exit to Lower Caves 9473 | -7/Factory | Repaired Enh. Autogun 9811 | -7/Factory | Discovered new exit (range 9) 9888 | -7/Factory | Entered Lower Caves 9934 | -7/Lower Caves | Met a Warlord Commander 9935 | -7/Lower Caves | Learned location of Warlord (-4) 9936 | -7/Lower Caves | Warlord Commander delivered Encrypted Comm Array 9999 | -7/Lower Caves | Discovered new exit (range 13) 10004 | -7/Lower Caves | Entered another Lower Caves area 10091 | -7/Lower Caves | Discovered new exit (range 12) 10101 | -7/Lower Caves | Entered Zion 10119 | -7/Zion | Discovered new exit (range 10) 10143 | -7/Zion | Given A8's code to call for help 10144 | -7/Zion | System corruption cleaned by Quarantine Array 10147 | -7/Zion | Learned Factory emergency access door positions 10179 | -7/Zion | Learned 12 Factory zone layouts 10187 | -7/Zion | Identified exit to Deep Caves 10192 | -7/Zion | Learned location of Data Miner (-6) 10225 | -7/Zion | Rebuked by Imprinter 10299 | -7/Zion | Found Prototype Special Weapon 10299 | -7/Zion | Identified RU-N14's Throwing Claymores 10483 | -7/Zion | Entered Proximity Caves 10617 | -6/Proximity Caves | Discovered new exit (range 6) 10618 | -6/Proximity Caves | Learned location of 1 exit from Factory 10620 | -6/Proximity Caves | Entered Factory 10620 | -6/Factory | Evolved 2 slots: Propulsion x1, Utility x1 10621 | -6/Factory | Identified exit to Lower Caves 10622 | -6/Factory | Identified exit to Factory 10622 | -6/Factory | Identified exit to Extension 10690 | -6/Factory | Fabricated Enh. Autogun? 10738 | -6/Factory | Entered Extension 10862 | -6/Extension | Rescued a captive Derelict 11033 | -6/Extension | Rescued a captive Derelict 11033 | -6/Extension | Rescued a captive Derelict 11114 | -6/Extension | Rescued A7 11163 | -6/Extension | Disrupted transfer network 11355 | -6/Extension | Rescued a captive Derelict 11358 | -6/Extension | Rescued a captive Derelict 11379 | -6/Extension | Lost 3 allies 11433 | -6/Extension | Rescued a captive Derelict 11434 | -6/Extension | Rescued a captive Derelict 11788 | -6/Extension | First assault squad dispatched 11790 | -6/Extension | Energy Cycler disabled 11791 | -6/Extension | Rescued a captive Derelict 11863 | -6/Extension | Discovered exit to Factory (range 10) 11863 | -6/Extension | Discovered new exit (range 6) 11874 | -6/Extension | Build established: Commander-Sprinter 11907 | -6/Extension | Entered Cetus 11907 | -6/Cetus | Accompanied by 6 allies (A7) 11912 | -6/Cetus | Acquired a Cetus Manufacturing Module code from A7 11927 | -6/Cetus | Spotted Cetus Guard 11927 | -6/Cetus | Spotted Cetus Guard 11929 | -6/Cetus | Spotted Cetus Guard 11930 | -6/Cetus | Spotted Cetus Guard 11940 | -6/Cetus | Allies destroyed Cetus Guard 11946 | -6/Cetus | Destroyed Cetus Guard 11956 | -6/Cetus | Allies destroyed Cetus Guard 11957 | -6/Cetus | Destroyed Cetus Guard 11987 | -6/Cetus | Lost 5 allies 12058 | -6/Cetus | Started Cetus Manufacturing Module 12083 | -6/Cetus | Manufactured an Enhanced Grunt 12108 | -6/Cetus | Manufactured an Enhanced Grunt 12133 | -6/Cetus | Manufactured an Enhanced Grunt 12158 | -6/Cetus | Manufactured an Enhanced Grunt 12183 | -6/Cetus | Manufactured an Enhanced Grunt 12243 | -6/Cetus | Discovered new exit (range 16) 12274 | -6/Cetus | Entered Archives 12274 | -6/Archives | Accompanied by 5 allies 12373 | -6/Archives | Discovered new exit (range 16) 12534 | -6/Archives | Discovered exit to Factory (range 15) 12592 | -6/Archives | Discovered new exit (range 14) 12656 | -6/Archives | Entered Hub_04(d) 12656 | -6/Hub_04(d) | Accompanied by 5 allies 12672 | -6/Hub_04(d) | Identified exit to Garrison 12804 | -6/Hub_04(d) | Build established: Scavenger-Gunner 12826 | -6/Hub_04(d) | Garrison activated, responded to threat 12903 | -6/Hub_04(d) | Entered Garrison 12903 | -6/Garrison | Accompanied by 4 allies 12942 | -6/Garrison | Rescued a captive Derelict 12944 | -6/Garrison | Rescued a captive Derelict 12986 | -6/Garrison | Lost 3 allies 13103 | -6/Garrison | Triggered checkpoint 13154 | -6/Garrison | Garrison Relay disabled 13157 | -6/Garrison | Garrison Relay disabled 13178 | -6/Garrison | Phase Generator disabled 13254 | -6/Garrison | Triggered checkpoint 13254 | -6/Garrison | Triggered checkpoint 13259 | -6/Garrison | Triggered checkpoint 13369 | -6/Garrison | Discovered exit to Factory (range 5) 13389 | -6/Garrison | Triggered checkpoint 13406 | -6/Garrison | Garrison Relay disabled 13466 | -6/Garrison | Triggered checkpoint 13519 | -6/Garrison | Triggered checkpoint 13543 | -6/Garrison | Garrison Relay disabled 13551 | -6/Garrison | Discovered exit to Factory (range 14) 13554 | -6/Garrison | Found embedded Infiltrators 13615 | -6/Garrison | Lost 3 allies 13629 | -6/Garrison | Discovered exit to Factory (range 14) 13636 | -6/Garrison | Spotted B-75 Beast 13734 | -6/Garrison | Garrison Relay disabled 13870 | -6/Garrison | Entered Factory 13870 | -5/Factory | Accompanied by 2 allies 13870 | -5/Factory | Evolved 2 slots: Propulsion x1, Utility x1 13942 | -5/Factory | Discovered new exit (range 8) 13950 | -5/Factory | Garrison activated, responded to threat 14077 | -5/Factory | Spotted B-75 Beast 14094 | -5/Factory | Discovered new exit (range 9) 14381 | -5/Factory | Lost 7 parts (2n3u2w) 14579 | -5/Factory | Discovered new exit (range 11) 14634 | -5/Factory | Entered another Factory area 14634 | -4/Factory | Evolved 2 slots: Utility x1, Weapon x1 14680 | -4/Factory | Manually triggered Chute Trap 14680 | -4/Factory | Sucked down chute 14680 | -4/Factory | Entered Waste 14681 | -4/Waste | Met a frightened Derelict 14683 | -4/Waste | Spotted C-40 Crusher 14684 | -4/Waste | Spotted C-40 Crusher 14692 | -4/Waste | Spotted C-40 Crusher 14693 | -4/Waste | Spotted C-40 Crusher 14695 | -4/Waste | EMP discharged 14696 | -4/Waste | Spotted C-40 Crusher 14698 | -4/Waste | Spotted C-40 Crusher 14701 | -4/Waste | Discovered new exit (range 13) 14706 | -4/Waste | Entered Factory 14752 | -4/Factory | Discovered new exit (range 13) 15420 | -4/Factory | Identified exit to Upper Caves 15456 | -4/Factory | First assault squad dispatched 15803 | -4/Factory | Entered Upper Caves 15910 | -4/Upper Caves | Spotted B-86 Titan 15951 | -4/Upper Caves | Destroyed B-86 Titan 15978 | -4/Upper Caves | Lost 6 parts (1p2n3w) 16084 | -4/Upper Caves | Learned location of 1 exit from Research 16293 | -4/Upper Caves | Encountered a Warlord checkpoint 16334 | -4/Upper Caves | Learned Research interactive machine intel 16501 | -4/Upper Caves | Discovered new exit (range 10) 16522 | -4/Upper Caves | Entered another Upper Caves area 16652 | -4/Upper Caves | Lost 6 parts (1p1n3u1w) 16889 | -4/Upper Caves | Build established: Scavenger-Mutant 16907 | -4/Upper Caves | Attracted the attention of an 0b10 outpost 16961 | -4/Upper Caves | Discovered new exit (range 11) 16962 | -4/Upper Caves | Attracted the attention of an 0b10 checkpoint 16966 | -4/Upper Caves | Entered Warlord 16972 | -4/Warlord | Lost 6 parts (1p2n1u2w) 16980 | -4/Warlord | Discovered new exit (range 12) 16994 | -4/Warlord | System corruption cleaned by Quarantine Array 17093 | -4/Warlord | Met Warlord 17101 | -4/Warlord | Warlord's base attacked by MAIN.C 17123 | -4/Warlord | Found Prototype Energy Gun 17123 | -4/Warlord | Identified Plasma Storm 17269 | -4/Warlord | Learned location of Armory (-3) 17269 | -4/Warlord | Learned Armory trap positions 17269 | -4/Warlord | Learned 4 Research zone layouts 17272 | -4/Warlord | Learned Research recycling unit intel 17272 | -4/Warlord | Learned Research terminal intel 17272 | -4/Warlord | Learned Armory recycling unit intel 17272 | -4/Warlord | Learned Factory repair station intel 17349 | -4/Warlord | Found Prototype Special Weapon 17349 | -4/Warlord | Identified RU-N14's Throwing Claymores v3 17357 | -4/Warlord | Found RU-N14's Throwing Claymores v3 17360 | -4/Warlord | Found RU-N14's Throwing Claymores v3 17417 | -4/Warlord | Build established: Gunner 17451 | -4/Warlord | Warlord forces counterattacked 17524 | -4/Warlord | Spotted Striker 17525 | -4/Warlord | Spotted Executioner 17585 | -4/Warlord | Lost 7 allies 17608 | -4/Warlord | Spotted Executioner 17618 | -4/Warlord | Attacked by Warlord forces 17626 | -4/Warlord | Destroyed Executioner 17648 | -4/Warlord | Lost 12 allies 17672 | -4/Warlord | Destroyed 11 combat bots 17701 | -4/Warlord | Spotted Executioner 17706 | -4/Warlord | Destroyed Executioner 17730 | -4/Warlord | Destroyed 7 combat bots 17732 | -4/Warlord | Core integrity fell below 50% 17738 | -4/Warlord | Entered Proximity Caves 17739 | -3/Proximity Caves | Identified exit to Research 17744 | -3/Proximity Caves | Lost 4 parts (2n2u) 17846 | -3/Proximity Caves | Lost 6 parts (4n1u1w) 17855 | -3/Proximity Caves | Core integrity fell below 20% 17923 | -3/Proximity Caves | Destroyed by G-67 Veteran with Plasma Rifle Last Messages --------------- 17812_ Penetrated by Slug. 17812_ Slug penetrates Abandoned Machinery. 17812_ Critical hit (Destroy). 17812_ Arm. Medium Treads destroyed. 17812_ Adv. Heat Sink destroyed. 17815_ Penetrated by Slug. 17815_ Imp. Treads destroyed. 17815_ Slug penetrates Wall. 17838_ Penetrated by Slug. 17847_ Slug penetrates Wall. 17848_ Penetrated by Slug. 17851_ Slug penetrates Wall. 17853_ Penetrated by Slug. 17854_ Core Analyzer destroyed. 17854_ Penetrated by Slug. 17854_ Slug penetrates Wall. 17857_ Penetrated by Slug. 17879_ System corrupted: Matter fused (-8). 17908_ System corrupted: Matter fused (-5). 17911_ Critical hit (Burn: +37). Map ----- +----------------------------------------------------+ | ?????????????????????????????????????????????????? | | ?????????????????????????????????????????????????? | | ?????????????????????????????????????????????????? | | ?????????????????????????????????????????????????? | | ?????????????????????????????????????????????????? | | ?????????????????????????????????????????????????? | | ?????????????????????????????????????????????????? | | ?????????????????????????????????????????????????? | | ?????????????????????????????????????????????????? | | ?????????????????????????????????????????????????? | | ?????????????????????????????????????????????????? | | ?????????????????????????????????????????????????? | | ?????????????????????????????????????????????????< | | ##??? ????????????????????????? ??????????????? | | ##?? ???????????????????????# ????????????? | | ### ?????????????????????# ????????????? | | ????????????????????? #????????????? | | ????????????????????? #????????????? | | #?????###???????????? ????????????? | | ##???## #############g ????????????? | | ##### g ????????????? | | ? l #???????????????? | | ?? ### #???????????????????? | | ??# ## #?# #???????????????????? | | ??# #?## #?## ##??????????????????? | | ??# #???## ##??# @ #??????????????????? | | #?# #????# #???# #??????????????????? | | ### ##???# ##???## #?????????????????? | | ##?## ##?????# #????????????????? | | ## ## ### #???##### ######????????????????? | | ?##### ## #??## ### ##?????????????????????? | | ?????# ##### ###??????????????????????? | | ?????## ## #????????????????????????? | | ??????## #????????????????????????? | | #?????## ###??????????????????????? | | ??????# #??????????????????????? | | ?????# ## #??????????????????????? | | ? #### #?###??????????????????? | | ##??### ### #??????????????????? | | ##?????## #??????????????????? | | ## #???????# #??????????????????? | | #?# #?????# #??????????????????? | | # ??# ## #????# ##??????????????????? | | ## ???##########????# ## ##???????????????????? | | ?## ?????????????????###?####????????????????????? | | ??#??????????????????????????????????????????????? | | ?????????????????????????????????????????????????? | | ##???????????????????????????????????????????????? | | ##??????????????????????????????????????????????? | | #??????????????????????????????????????????????? | +----------------------------------------------------+ Best States ------------- Heat Dissipation 81 Energy Generation 25 Energy Capacity 515 Matter Stores 300 Matter Capacity 300 Sight Range 16 Terrain Scan Density 210 Jamming Range 14 Armor Coverage 675 Resistance: KI 30 Weapon Cycling 15 Evasion (%) 74 Target Analysis 9 Core Analysis 6 Armor Integrity Analysis 30 Recoil Reduction 6 Salvage Targeting 2 Offensive Hacking 10 Authchip Count 1 Item Schematics ----------------- Enh. Autogun | -8/Materials | Scanalyzed Imp. Cesium-ion Thruster | -7/Factory | Scanalyzed Barrage Gun | -7/Zion | Free Riot Gun | -7/Zion | Free Enh. Flamer | -7/Zion | Free Ripper | -7/Zion | Free Arc Thrower | -7/Zion | Free Microactuators | -7/Zion | Archive Nuclear Pulse Thruster | -7/Zion | Archive Imp. Shield Generator | -7/Zion | Archive Flexi-carbon Leg | -7/Zion | Archive Hvy. Rocket Launcher | -7/Zion | Archive Imp. Particle Charger | -7/Zion | Archive Med. Treads | -7/Zion | Archive Wave Gun | -7/Zion | Archive Mni. Drone Bay | -7/Zion | Archive Imp. Cryofiber Web | -7/Zion | Archive Imp. Medium Treads | -7/Zion | Archive Imp. Deuterium Engine | -7/Zion | Archive Armor Integrity Analyzer | -7/Zion | Archive Lrn. Missile Launcher | -7/Zion | Archive Robot Schematics ------------------ A-02 Transporter | -7/Zion | Archive Y-54 Guardian | -7/Zion | Archive K-01 Serf | -7/Zion | Archive H-88 Terminator | -7/Zion | Archive Fabricated ------------ Enh. Autogun | x1 | -7/Factory Enh. Autogun | x1 | -6/Factory | Authchip Alien Tech Used ----------------- None Achievements -------------- None Challenges ------------ None Game ------ Seed MiniCommInterpreter Manual? 0 Play Time 03:17:49 Cumulative 147.4 hours Start 2025.03.20 @ 12:36:37 End 2025.03.20 @ 19:29:00 Sessions 3 Manual Loads 0 Difficulty Rogue Special Mode None Game No. 103 Rogue 103 Adventurer 0 Explorer 0 Win Type - Total 7 Types 5/0/1/1/0/0/0/0/0 Lore% 70 Gallery% 66 Achievement% 62 Wizard Run 0 Options --------- Layout 1 ASCII 0 Keyboard 0 Movement Mouse Keybinds 0 Fullscreen 2 Font 32/SmallcapsGlow Map View 50x35 Zoom Use 0% Tactical HUD 1 Map Filters NONE Filters NONE Steam 1 RUN: d63f7cb4-206f-4242-a24f-1bbc3d6806cc